fUST/lending_fUST_20240828
["ID","MTS","AMOUNT","RATE_DAILY","PERIOD"]
[336411256,1724815843131,-505.25350058,0.00011232,2]
[336411257,1724815843142,-1929.06,0.00011232,2]
[336411258,1724815843151,-500.0,0.00011232,2]
[336411259,1724815843161,-500.0,0.00011232,2]
[336411260,1724815843170,-482.1720992,0.00011232,2]
[336411261,1724815843179,-500.0,0.00011232,2]
[336411262,1724815843189,-500.0,0.00011232,2]
[336411263,1724815843198,-500.0,0.00011232,2]
[336411264,1724815843208,-244.28,0.00011232,2]
[336411265,1724815843218,-500.0,0.00011232,2]
[336411266,1724815843227,-9204.49,0.00011232,2]
[336411267,1724815843238,-500.0,0.00011232,2]
[336411268,1724815843247,-1836.73,0.00011232,2]
[336411269,1724815843257,-500.0,0.00011232,2]
[336411270,1724815843267,-500.0,0.00011232,2]
[336411271,1724815843277,-2555.11,0.00011232,2]
[336411274,1724815843287,-500.0,0.00011232,2]
[336411277,1724815843296,-500.0,0.00011232,2]
[336411279,1724815843306,-500.0,0.00011232,2]
[336411281,1724815843315,-244.27,0.00011232,2]
[336411284,1724815843325,-500.0,0.00011232,2]
[336411285,1724815843335,-500.0,0.00011232,2]
[336411286,1724815843346,-500.0,0.00011232,2]
[336411287,1724815843356,-500.0,0.00011232,2]
[336411288,1724815843366,-500.0,0.00011232,2]
[336411289,1724815843378,-500.0,0.00011232,2]
[336411290,1724815843387,-2427.25,0.00011232,2]
[336411291,1724815843396,-500.0,0.00011232,2]
[336411292,1724815843405,-500.0,0.00011232,2]
[336411293,1724815843415,-362.46,0.00011232,2]
[336411294,1724815843425,-500.0,0.00011232,2]
[336411295,1724815843435,-500.0,0.00011232,2]
[336411296,1724815843444,-500.0,0.00011232,2]
[336411297,1724815843458,-503.35024385,0.00011232,2]
[336411298,1724815843467,-977.36,0.00011232,2]
[336411299,1724815843477,-500.0,0.00011232,2]
[336411300,1724815843486,-500.0,0.00011232,2]
[336411302,1724815843497,-500.0,0.00011232,2]
[336411304,1724815843507,-377.76497129,0.00011232,2]
[336411306,1724815843516,-500.0,0.00011232,2]
[336411307,1724815843527,-500.0,0.00011232,2]
[336411309,1724815843536,-5394.76,0.00011232,2]
[336411311,1724815843546,-502.02519842,0.00011232,2]
[336411313,1724815843556,-1445.32,0.00011232,2]
[336411315,1724815843566,-500.0,0.00011232,2]
[336411317,1724815843577,-500.0,0.00011232,2]
[336411319,1724815843586,-500.0,0.00011273,2]
[336411322,1724815843596,-500.0,0.00011273,2]
[336411325,1724815843606,-500.0,0.00011273,2]
[336411328,1724815843616,-2611.26711056,0.00011369,2]
[336411330,1724815843628,-9030.71466468,0.00011406,2]
[336411332,1724815843637,-200.0,0.00011409,2]
[336411334,1724815843647,-223.73028006,0.00011409,2]
[336411337,1724815843657,-500.0,0.00011505,2]
[336411339,1724815843666,-412.87226166,0.00011505,2]
[336411341,1724815843675,-752.23,0.00011505,2]
[336411343,1724815843685,-500.0,0.00011505,2]
[336411344,1724815843694,-500.0,0.00011506,2]
[336411345,1724815843704,-500.0,0.00011506,2]
[336411346,1724815843712,-500.0,0.00011506,2]
[336411347,1724815843722,-500.0,0.00011506,2]
[336411348,1724815843732,-500.0,0.00011506,2]
[336411349,1724815843742,-568.66,0.00011506,2]
[336411350,1724815843751,-500.0,0.00011506,2]
[336411351,1724815843761,-500.0,0.00011506,2]
[336411352,1724815843771,-500.0,0.00011506,2]
[336411353,1724815843781,-500.0,0.00011506,2]
[336411354,1724815843791,-500.0,0.00011506,2]
[336411355,1724815843800,-500.0,0.00011506,2]
[336411356,1724815843810,-500.0,0.00011506,2]
[336411357,1724815843820,-500.0,0.00011506,2]
[336411358,1724815843829,-500.0,0.00011506,2]
[336411359,1724815843839,-500.0,0.00011506,2]
[336411360,1724815843850,-500.0,0.00011506,2]
[336411361,1724815843859,-584.62,0.00011506,2]
[336411362,1724815843869,-619.4,0.00011506,2]
[336411363,1724815843882,-500.0,0.00011506,2]
[336411364,1724815843892,-500.0,0.00011506,2]
[336411365,1724815843902,-549.85546037,0.00011506,2]
[336411366,1724815843912,-332.01277964,0.00011506,2]
[336411367,1724815843922,-500.0,0.00011506,2]
[336411368,1724815843932,-503.03297034,0.00011506,2]
[336411369,1724815843943,-187.62,0.00011506,2]
[336411370,1724815843953,-553.10953665,0.00011506,2]
[336411371,1724815843963,-500.0,0.00011506,2]
[336411372,1724815843974,-323.13,0.00011506,2]
[336411373,1724815843984,-500.0,0.00011506,2]
[336411374,1724815843994,-500.0,0.00011506,2]
[336411375,1724815844004,-629.88036882,0.00011506,2]
[336411376,1724815844014,-470.84,0.00011506,2]
[336411377,1724815844024,-500.0,0.00011506,2]
[336411378,1724815844034,-435.31121526,0.00011506,2]
[336411380,1724815844044,-500.0,0.00011506,2]
[336411381,1724815844054,-500.0,0.00011506,2]
[336411382,1724815844065,-500.0,0.00011506,2]
[336411383,1724815844075,-500.0,0.00011506,2]
[336411384,1724815844085,-604.02199248,0.00011506,2]
[336411385,1724815844098,-600.36,0.00011506,2]
[336411386,1724815844107,-500.0,0.00011506,2]
[336411387,1724815844117,-500.0,0.00011506,2]
[336411388,1724815844128,-500.0,0.00011506,2]
[336411389,1724815844144,-500.0,0.00011506,2]
[336411390,1724815844154,-500.0,0.00011506,2]
[336411391,1724815844164,-500.0,0.00011506,2]
[336411392,1724815844174,-194.43,0.00011506,2]
[336411393,1724815844184,-225.59524076,0.00011506,2]
[336411394,1724815844194,-500.0,0.00011506,2]
[336411395,1724815844204,-500.0,0.00011506,2]
[336411396,1724815844213,-503.29847344,0.00011506,2]
[336411397,1724815844223,-503.68151862,0.00011506,2]
[336411398,1724815844232,-585.98,0.00011506,2]
[336411399,1724815844242,-507.11129092,0.00011506,2]
[336411400,1724815844251,-520.3,0.00011506,2]
[336411401,1724815844261,-500.0,0.00011506,2]
[336411402,1724815844271,-500.0,0.00011506,2]
[336411403,1724815844281,-500.0,0.00011506,2]
[336411404,1724815844291,-502.4938907,0.00011506,2]
[336411405,1724815844300,-500.0,0.00011506,2]
[336411406,1724815844310,-277.42670703,0.00011506,2]
[336411407,1724815844320,-600.09958272,0.00011506,2]
[336411408,1724815844329,-500.0,0.00011506,2]
[336411409,1724815844340,-500.0,0.00011506,2]
[336411410,1724815844350,-500.0,0.00011506,2]
[336411411,1724815844359,-500.0,0.00011506,2]
[336411412,1724815844369,-507.07,0.00011506,2]
[336411413,1724815844382,-500.0,0.00011506,2]
[336411414,1724815844391,-500.0,0.00011506,2]
[336411415,1724815844401,-1871.19,0.00011506,2]
[336411416,1724815844410,-390.13,0.00011506,2]
[336411417,1724815844419,-3233.87,0.00011506,2]
[336411418,1724815844429,-500.0,0.00011506,2]
[336411419,1724815844439,-500.0,0.00011506,2]
[336411420,1724815844449,-500.0,0.00011506,2]
[336411421,1724815844462,-500.0,0.00011506,2]
[336411422,1724815844472,-500.0,0.00011506,2]
[336411423,1724815844481,-500.0,0.00011506,2]
[336411424,1724815844491,-1607.92,0.00011506,2]
[336411425,1724815844501,-500.0,0.00011506,2]
[336411427,1724815844511,-371.07159877,0.00011506,2]
[336411428,1724815844521,-500.0,0.00011506,2]
[336411429,1724815844531,-500.0,0.00011506,2]
[336411430,1724815844542,-519.2,0.00011506,2]
[336411431,1724815844551,-516.95,0.00011506,2]
[336411432,1724815844561,-573.14,0.00011506,2]
[336411433,1724815844572,-500.0,0.00011506,2]
[336411434,1724815844582,-500.0,0.00011506,2]
[336411435,1724815844591,-394.19772898,0.00011506,2]
[336411436,1724815844601,-500.0,0.00011506,2]
[336411437,1724815844611,-500.0,0.00011506,2]
[336411438,1724815844623,-500.0,0.00011506,2]
[336411439,1724815844635,-587.56,0.00011506,2]
[336411440,1724815844644,-500.0,0.00011506,2]
[336411441,1724815844653,-500.0,0.00011506,2]
[336411442,1724815844663,-500.0,0.00011506,2]
[336411443,1724815844673,-500.0,0.00011506,2]
[336411444,1724815844683,-1818.83,0.00011506,2]
[336411445,1724815844692,-916.45,0.00011506,2]
[336411446,1724815844703,-500.0,0.00011506,2]
[336411447,1724815844713,-500.0,0.00011506,2]
[336411448,1724815844723,-248.47,0.00011506,2]
[336411449,1724815844732,-500.0,0.00011506,2]
[336411450,1724815844742,-765.55,0.00011506,2]
[336411451,1724815844751,-500.0,0.00011506,2]
[336411452,1724815844761,-500.0,0.00011506,2]
[336411453,1724815844771,-500.0,0.00011506,2]
[336411454,1724815844780,-500.0,0.00011506,2]
[336411455,1724815844790,-508.3,0.00011506,2]
[336411456,1724815844800,-409.55196573,0.00011506,2]
[336411457,1724815844810,-230.73633879,0.00011506,2]
[336411458,1724815844820,-3778.36,0.00011506,2]
[336411459,1724815844829,-348.82455249,0.00011506,2]
[336411460,1724815844839,-531.11,0.00011506,2]
[336411461,1724815844850,-1929.06,0.00011506,2]
[336411462,1724815844860,-500.0,0.00011506,2]
[336411463,1724815844870,-500.0,0.00011506,2]
[336411464,1724815844883,-500.0,0.00011506,2]
[336411465,1724815844893,-500.0,0.00011506,2]
[336411466,1724815844906,-374.05,0.00011506,2]
[336411467,1724815844916,-9204.49,0.00011506,2]
[336411468,1724815844926,-1836.73,0.00011506,2]
[336411469,1724815844936,-500.0,0.00011506,2]
[336411470,1724815844947,-500.0,0.00011506,2]
[336411471,1724815844957,-2555.11,0.00011506,2]
[336411472,1724815844968,-585.37,0.00011506,2]
[336411473,1724815844978,-500.0,0.00011506,2]
[336411474,1724815844988,-500.0,0.00011506,2]
[336411475,1724815844998,-500.0,0.00011506,2]
[336411476,1724815845009,-500.0,0.00011506,2]
[336411477,1724815845019,-500.0,0.00011506,2]
[336411478,1724815845028,-2427.25,0.00011506,2]
[336411479,1724815845037,-437.23187944,0.00011506,2]
[336411480,1724815845047,-437.30527446,0.00011506,2]
[336411481,1724815845056,-500.0,0.00011506,2]
[336411482,1724815845065,-500.0,0.00011506,2]
[336411483,1724815845074,-500.0,0.00011506,2]
[336411484,1724815845085,-977.36,0.00011506,2]
[336411485,1724815845095,-500.0,0.00011506,2]
[336411486,1724815845104,-500.0,0.00011506,2]
[336411487,1724815845114,-500.0,0.00011506,2]
[336411488,1724815845123,-500.0,0.00011506,2]
[336411489,1724815845135,-500.0,0.00011506,2]
[336411490,1724815845144,-5394.76,0.00011506,2]
[336411491,1724815845153,-1445.32,0.00011506,2]
[336411492,1724815845163,-500.0,0.00011506,2]
[336411493,1724815845173,-500.0,0.00011506,2]
[336411494,1724815845183,-899.64193172,0.00011548,2]
[336411495,1724815845193,-154.56721181,0.00011621,2]
[336411496,1724815845206,-752.23,0.00011639,2]
[336411497,1724815845216,-600.0,0.0001164,2]
[336411498,1724815845226,-271.41917196,0.00011712,2]
[336411499,1724815845236,-42449.47322548,0.00011731,2]
[336411500,1724815845246,-156.97889283,0.00011731,2]
[336411501,1724815845255,-500.0,0.00011773,2]
[336411502,1724815845265,-500.0,0.00011779,2]
[336411503,1724815845276,-12976.35681957,0.0001178,5]
[336411504,1724815845286,-500.0,0.0001178,2]
[336411505,1724815845296,-500.0,0.0001178,2]
[336411506,1724815845306,-485.05135613,0.0001178,2]
[336411507,1724815845316,-500.0,0.0001178,2]
[336411508,1724815845327,-500.0,0.0001178,2]
[336411509,1724815845337,-568.66,0.0001178,2]
[336411510,1724815845348,-500.0,0.0001178,2]
[336411511,1724815845360,-500.0,0.0001178,2]
[336411512,1724815845369,-500.0,0.0001178,2]
[336411513,1724815845383,-500.0,0.0001178,2]
[336411514,1724815845400,-500.0,0.0001178,2]
[336411515,1724815845409,-500.0,0.0001178,2]
[336411516,1724815845419,-500.0,0.0001178,2]
[336411517,1724815845428,-500.0,0.0001178,2]
[336411518,1724815845437,-638.79,0.0001178,2]
[336411519,1724815845450,-619.4,0.0001178,2]
[336411520,1724815845460,-500.0,0.0001178,2]
[336411521,1724815845469,-500.0,0.0001178,2]
[336411522,1724815845482,-151.62,0.0001178,2]
[336411523,1724815845494,-500.0,0.0001178,2]
[336411524,1724815845503,-500.0,0.0001178,2]
[336411525,1724815845513,-500.0,0.0001178,2]
[336411526,1724815845522,-355.49634926,0.0001178,2]
[336411527,1724815845533,-365.08,0.0001178,2]
[336411528,1724815845543,-500.0,0.0001178,2]
[336411529,1724815845552,-500.0,0.0001178,2]
[336411530,1724815845562,-500.0,0.0001178,2]
[336411531,1724815845572,-500.0,0.0001178,2]
[336411532,1724815845582,-500.0,0.0001178,2]
[336411533,1724815845592,-500.0,0.0001178,2]
[336411534,1724815845602,-500.0,0.0001178,2]
[336411535,1724815845612,-176.48961431,0.0001178,2]
[336411536,1724815845623,-424.63102857,0.0001178,2]
[336411537,1724815845633,-500.0,0.0001178,2]
[336411538,1724815845643,-520.3,0.0001178,2]
[336411539,1724815845653,-500.0,0.0001178,2]
[336411540,1724815845662,-400.96863812,0.0001178,2]
[336411541,1724815845671,-500.0,0.0001178,2]
[336411542,1724815845681,-500.0,0.0001178,2]
[336411543,1724815845692,-539.26578224,0.0001178,2]
[336411544,1724815845702,-500.0,0.0001178,2]
[336411545,1724815845711,-500.0,0.0001178,2]
[336411546,1724815845720,-502.69517344,0.0001178,2]
[336411547,1724815845730,-507.07,0.0001178,2]
[336411548,1724815845740,-528.32,0.0001178,2]
[336411549,1724815845751,-1871.19,0.0001178,2]
[336411550,1724815845760,-3233.87,0.0001178,2]
[336411551,1724815845770,-500.0,0.0001178,2]
[336411552,1724815845779,-500.0,0.0001178,2]
[336411553,1724815845790,-500.0,0.0001178,2]
[336411554,1724815845800,-1607.92,0.0001178,2]
[336411555,1724815845810,-500.0,0.0001178,2]
[336411556,1724815845820,-500.0,0.0001178,2]
[336411557,1724815845830,-500.0,0.0001178,2]
[336411558,1724815845839,-516.95,0.0001178,2]
[336411559,1724815845849,-500.0,0.0001178,2]
[336411560,1724815845858,-500.0,0.0001178,2]
[336411561,1724815845867,-500.0,0.0001178,2]
[336411562,1724815845877,-534.47,0.0001178,2]
[336411563,1724815845894,-500.0,0.0001178,2]
[336411564,1724815845905,-587.56,0.0001178,2]
[336411565,1724815845914,-500.0,0.0001178,2]
[336411566,1724815845924,-554.16,0.0001178,2]
[336411567,1724815845934,-500.0,0.0001178,2]
[336411568,1724815845942,-1818.83,0.0001178,2]
[336411569,1724815845952,-916.45,0.0001178,2]
[336411570,1724815845962,-500.0,0.0001178,2]
[336411571,1724815845972,-500.0,0.0001178,2]
[336411572,1724815845981,-765.55,0.0001178,2]
[336411573,1724815845991,-500.0,0.0001178,2]
[336411574,1724815846000,-500.0,0.0001178,2]
[336411575,1724815846011,-500.0,0.0001178,2]
[336411576,1724815846020,-500.0,0.0001178,2]
[336411577,1724815846032,-3778.36,0.0001178,2]
[336411578,1724815846042,-531.11,0.0001178,2]
[336411579,1724815846053,-1929.06,0.0001178,2]
[336411580,1724815846065,-500.0,0.0001178,2]
[336411581,1724815846076,-500.0,0.0001178,2]
[336411582,1724815846087,-500.0,0.0001178,2]
[336411583,1724815846100,-500.0,0.0001178,2]
[336411584,1724815846110,-9204.49,0.0001178,2]
[336411586,1724815846120,-1836.73,0.0001178,2]
[336411588,1724815846130,-500.0,0.0001178,2]
[336411590,1724815846140,-500.0,0.0001178,2]
[336411592,1724815846150,-2555.11,0.0001178,2]
[336411594,1724815846160,-500.0,0.0001178,2]
[336411596,1724815846170,-504.15819514,0.0001178,2]
[336411598,1724815846179,-500.0,0.0001178,2]
[336411600,1724815846189,-500.0,0.0001178,2]
[336411602,1724815846199,-500.0,0.0001178,2]
[336411604,1724815846208,-2427.25,0.0001178,2]
[336411606,1724815846218,-500.0,0.0001178,2]
[336411608,1724815846227,-542.96749981,0.0001178,2]
[336411610,1724815846237,-977.36,0.0001178,2]
[336411612,1724815846247,-597.17928284,0.0001178,2]
[336411614,1724815846256,-500.0,0.0001178,2]
[336411615,1724815846267,-500.0,0.0001178,2]
[336411616,1724815846279,-500.0,0.0001178,2]
[336411617,1724815846289,-5394.76,0.0001178,2]
[336411618,1724815846299,-1445.32,0.0001178,2]
[336411619,1724815846310,-500.0,0.0001178,2]
[336411620,1724815846320,-544.51359376,0.00011842,2]
[336411621,1724815846330,-154.74467129,0.00011842,2]
[336411622,1724815846340,-535.33512,0.00011842,2]
[336411624,1724815846349,-288.55434071,0.00011894,2]
[336411626,1724815846360,-192.06681084,0.00011894,2]
[336411627,1724815846370,-154.74467129,0.00011894,2]
[336411628,1724815846380,-752.23,0.00011898,2]
[336411629,1724815846519,-500.0,0.00011899,2]
[336411630,1724815846529,-500.0,0.00011899,2]
[336411631,1724815846539,-514.43676867,0.00011899,2]
[336411632,1724815846549,-752.23,0.00011899,2]
[336411633,1724815846559,-752.23,0.00011899,2]
[336411635,1724815846569,-752.23,0.00011899,2]
[336411637,1724815846579,-752.23,0.00011899,2]
[336411639,1724815846588,-752.23,0.00011899,2]
[336411640,1724815846600,-752.23,0.00011899,2]
[336411642,1724815846609,-752.23,0.00011899,2]
[336411644,1724815846620,-752.23,0.00011899,2]
[336411646,1724815846632,-752.23,0.00011899,2]
[336411648,1724815846641,-500.0,0.00011953,2]
[336411649,1724815846651,-155.07432915,0.00011987,2]
[336411650,1724815846661,-174.99644935,0.00011987,2]
[336411651,1724815846671,-627.85788953,0.00011987,2]
[336411652,1724815846681,-666.07600313,0.00011987,2]
[336411653,1724815846692,-695.42593632,0.00011987,2]
[336411654,1724815846702,-196.93547315,0.00011999,2]
[336411655,1724815846712,-752.23,0.00012043,2]
[336411656,1724815846722,-752.23,0.00012043,2]
[336411657,1724815846731,-752.23,0.00012043,2]
[336411658,1724815846741,-752.23,0.00012043,2]
[336411659,1724815846750,-752.23,0.00012043,2]
[336411660,1724815846759,-752.23,0.00012043,2]
[336411661,1724815846769,-752.38149673,0.00012043,2]
[336411662,1724815846778,-500.0,0.00012054,2]
[336411663,1724815846787,-556.5724918,0.00012054,2]
[336411664,1724815846796,-568.66,0.00012054,2]
[336411665,1724815846807,-500.0,0.00012054,2]
[336411666,1724815846817,-500.0,0.00012054,2]
[336411667,1724815846826,-500.0,0.00012054,2]
[336411668,1724815846836,-500.0,0.00012054,2]
[336411669,1724815846845,-500.0,0.00012054,2]
[336411670,1724815846855,-500.0,0.00012054,2]
[336411671,1724815846864,-500.0,0.00012054,2]
[336411672,1724815846873,-500.0,0.00012054,2]
[336411673,1724815846884,-619.4,0.00012054,2]
[336411674,1724815846893,-261.98138611,0.00012054,2]
[336411675,1724815846903,-561.59,0.00012054,2]
[336411676,1724815846912,-166.44,0.00012054,2]
[336411677,1724815846921,-500.0,0.00012054,2]
[336411678,1724815846930,-366.38125659,0.00012054,2]
[336411679,1724815846940,-500.0,0.00012054,2]
[336411680,1724815846950,-171.72825114,0.00012054,2]
[336411681,1724815846961,-500.0,0.00012054,2]
[336411682,1724815846971,-167.9,0.00012054,2]
[336411683,1724815846982,-162.70529747,0.00012054,2]
[336411684,1724815846993,-500.0,0.00012054,2]
[336411685,1724815847003,-500.0,0.00012054,2]
[336411686,1724815847014,-520.3,0.00012054,2]
[336411687,1724815847024,-500.0,0.00012054,2]
[336411688,1724815847035,-155.75,0.00012054,2]
[336411689,1724815847044,-500.0,0.00012054,2]
[336411690,1724815847055,-500.0,0.00012054,2]
[336411691,1724815847065,-502.17748487,0.00012054,2]
[336411692,1724815847076,-507.07,0.00012054,2]
[336411693,1724815847088,-1871.19,0.00012054,2]
[336411694,1724815847099,-3233.87,0.00012054,2]
[336411695,1724815847110,-500.0,0.00012054,2]
[336411696,1724815847121,-500.0,0.00012054,2]
[336411697,1724815847134,-1607.92,0.00012054,2]
[336411698,1724815847145,-289.61,0.00012054,2]
[336411699,1724815847157,-228.78,0.00012054,2]
[336411700,1724815847168,-516.95,0.00012054,2]
[336411701,1724815847179,-535.06219005,0.00012054,2]
[336411702,1724815847188,-226.55,0.00012054,2]
[336411703,1724815847198,-500.0,0.00012054,2]
[336411704,1724815847209,-271.51082882,0.00012054,2]
[336411705,1724815847219,-587.56,0.00012054,2]
[336411706,1724815847228,-500.0,0.00012054,2]
[336411707,1724815847237,-500.0,0.00012054,2]
[336411708,1724815847248,-1818.83,0.00012054,2]
[336411709,1724815847258,-916.45,0.00012054,2]
[336411710,1724815847268,-152.94,0.00012054,2]
[336411711,1724815847278,-500.0,0.00012054,2]
[336411712,1724815847289,-765.55,0.00012054,2]
[336411713,1724815847300,-420.16,0.00012054,2]
[336411714,1724815847310,-360.22935746,0.00012054,2]
[336411715,1724815847322,-500.0,0.00012054,2]
[336411716,1724815847331,-500.0,0.00012054,2]
[336411717,1724815847341,-3778.36,0.00012054,2]
[336411718,1724815847350,-531.11,0.00012054,2]
[336411719,1724815847360,-1929.06,0.00012054,2]
[336411720,1724815847369,-500.0,0.00012054,2]
[336411721,1724815847380,-310.17,0.00012054,2]
[336411722,1724815847390,-500.0,0.00012054,2]
[336411723,1724815847399,-9204.49,0.00012054,2]
[336411724,1724815847408,-1836.73,0.00012054,2]
[336411725,1724815847417,-252.08937695,0.00012054,2]
[336411726,1724815847427,-2555.11,0.00012054,2]
[336411727,1724815847436,-500.0,0.00012054,2]
[336411728,1724815847448,-500.0,0.00012054,2]
[336411729,1724815847462,-500.0,0.00012054,2]
[336411730,1724815847471,-500.0,0.00012054,2]
[336411731,1724815847481,-2427.25,0.00012054,2]
[336411732,1724815847490,-500.0,0.00012054,2]
[336411733,1724815847501,-977.36,0.00012054,2]
[336411734,1724815847510,-500.0,0.00012054,2]
[336411735,1724815847520,-591.27997667,0.00012054,2]
[336411736,1724815847530,-500.0,0.00012054,2]
[336411737,1724815847542,-5394.76,0.00012054,2]
[336411738,1724815847552,-1445.32,0.00012054,2]
[336411739,1724815847562,-500.0,0.00012054,2]
[336411740,1724815847573,-404.8069796,0.0001212,2]
[336411741,1724815847584,-934.65211132,0.0001212,2]
[336411742,1724815847595,-500.20815644,0.00012242,2]
[336411743,1724815847604,-998.51610973,0.00012264,2]
[336411744,1724815847615,-1000.0,0.00012321,2]
[336411745,1724815847627,-500.0,0.00012328,2]
[336411746,1724815847638,-568.66,0.00012328,2]
[336411747,1724815847649,-477.45,0.00012328,2]
[336411748,1724815847659,-193.1,0.00012328,2]
[336411749,1724815847671,-500.0,0.00012328,2]
[336411750,1724815847682,-561.94579405,0.00012328,2]
[336411751,1724815847691,-500.0,0.00012328,2]
[336411752,1724815847701,-500.0,0.00012328,2]
[336411753,1724815847711,-241.65,0.00012328,2]
[336411754,1724815847721,-536.53,0.00012328,2]
[336411755,1724815847730,-619.4,0.00012328,2]
[336411756,1724815847741,-500.0,0.00012328,2]
[336411757,1724815847751,-331.88796279,0.00012328,2]
[336411758,1724815847761,-500.0,0.00012328,2]
[336411759,1724815847771,-417.30141307,0.00012328,2]
[336411760,1724815847782,-500.0,0.00012328,2]
[336411761,1724815847792,-520.3,0.00012328,2]
[336411762,1724815847803,-500.0,0.00012328,2]
[336411763,1724815847813,-162.74,0.00012328,2]
[336411764,1724815847824,-500.0,0.00012328,2]
[336411765,1724815847833,-507.07,0.00012328,2]
[336411766,1724815847844,-1871.19,0.00012328,2]
[336411767,1724815847854,-3233.87,0.00012328,2]
[336411768,1724815847863,-500.0,0.00012328,2]
[336411769,1724815847873,-500.0,0.00012328,2]
[336411770,1724815847883,-1607.92,0.00012328,2]
[336411771,1724815847892,-516.95,0.00012328,2]
[336411772,1724815847902,-587.56,0.00012328,2]
[336411773,1724815847911,-500.0,0.00012328,2]
[336411774,1724815847922,-500.0,0.00012328,2]
[336411775,1724815847931,-1818.83,0.00012328,2]
[336411776,1724815847940,-916.45,0.00012328,2]
[336411777,1724815847949,-500.0,0.00012328,2]
[336411778,1724815847959,-765.55,0.00012328,2]
[336411779,1724815847968,-500.0,0.00012328,2]
[336411780,1724815847979,-386.88,0.00012328,2]
[336411781,1724815847989,-3778.36,0.00012328,2]
[336411782,1724815847999,-531.11,0.00012328,2]
[336411783,1724815848008,-1929.06,0.00012328,2]
[336411784,1724815848018,-500.0,0.00012328,2]
[336411785,1724815848027,-500.0,0.00012328,2]
[336411786,1724815848037,-9204.49,0.00012328,2]
[336411787,1724815848047,-1836.73,0.00012328,2]
[336411788,1724815848056,-2555.11,0.00012328,2]
[336411789,1724815848067,-500.0,0.00012328,2]
[336411790,1724815848076,-243.19777595,0.00012328,2]
[336411791,1724815848085,-186.57,0.00012328,2]
[336411792,1724815848095,-500.0,0.00012328,2]
[336411793,1724815848106,-2427.25,0.00012328,2]
[336411794,1724815848117,-500.0,0.00012328,2]
[336411795,1724815848126,-977.36,0.00012328,2]
[336411796,1724815848138,-500.0,0.00012328,2]
[336411797,1724815848147,-310.3782227,0.00012328,2]
[336411798,1724815848157,-5394.76,0.00012328,2]
[336411799,1724815848167,-1445.32,0.00012328,2]
[336411800,1724815848176,-500.0,0.00012328,2]
[336411801,1724815848185,-9030.71466467,0.00012502,2]
[336411802,1724815848196,-154.57491897,0.00012516,2]
[336411803,1724815848205,-422.69720013,0.00012516,2]
[336411804,1724815848215,-2164.66654382,0.00012551,2]
[336411805,1724815848225,-600.0,0.00012562,2]
[336411806,1724815848235,-500.0,0.00012602,2]
[336411807,1724815848245,-568.66,0.00012602,2]
[336411808,1724815848254,-500.0,0.00012602,2]
[336411809,1724815848265,-500.0,0.00012602,2]
[336411810,1724815848275,-500.0,0.00012602,2]
[336411811,1724815848284,-619.4,0.00012602,2]
[336411812,1724815848293,-500.0,0.00012602,2]